fUSD/lending_fUSD_20240122
["ID","MTS","AMOUNT","RATE_DAILY","PERIOD"]
[312492524,1705927892607,-14916.0,0.00055068,120]
[312492525,1705927892618,-500.0,0.00055068,120]
[312492526,1705927892628,-1713.4,0.00055068,120]
[312492527,1705927892638,-454.3787956,0.00055068,120]
[312492528,1705927892648,-500.0,0.00055068,120]
[312492529,1705927892658,-1423.91,0.00055068,120]
[312492530,1705927892668,-500.0,0.00055068,120]
[312492531,1705927892678,-709.66,0.00055068,120]
[312492532,1705927892689,-911.23,0.00055068,120]
[312492533,1705927892699,-500.0,0.00055068,120]
[312492534,1705927892710,-500.0,0.00055068,120]
[312492535,1705927892719,-708.8,0.00055068,120]
[312492536,1705927892731,-500.0,0.00055068,120]
[312492537,1705927892742,-1161.25,0.00055068,120]
[312492538,1705927892752,-504.70544774,0.00055068,120]
[312492539,1705927892763,-662.89,0.00055068,120]
[312492540,1705927892773,-1860.47,0.00055068,120]
[312492541,1705927892783,-893.25,0.00055068,120]
[312492542,1705927892793,-1908.96,0.00055068,120]
[312492543,1705927892803,-500.0,0.00055068,120]
[312492544,1705927892813,-500.0,0.00055068,120]
[312492545,1705927892823,-5186.41,0.00055068,5]
[312492546,1705927892833,-1529.13,0.00055068,120]
[312492547,1705927892843,-1737.47,0.00055068,120]
[312492548,1705927892852,-500.0,0.00055068,120]
[312492549,1705927892862,-500.0,0.00055068,120]
[312492550,1705927892872,-1718.07,0.00055068,120]
[312492551,1705927892881,-500.0,0.00055068,120]
[312492552,1705927892891,-500.0,0.00055068,120]
[312492553,1705927892901,-729.36,0.00055068,120]
[312492554,1705927892911,-1750.56,0.00055068,120]
[312492555,1705927892922,-3339.69,0.00055068,120]
[312492556,1705927892932,-500.0,0.00055068,120]
[312492557,1705927892942,-764.55,0.00055068,120]
[312492558,1705927892951,-1447.37,0.00055068,120]
[312492559,1705927892962,-642.9,0.00055068,120]
[312492560,1705927892972,-500.0,0.00055068,120]
[312492561,1705927892983,-500.0,0.00055068,120]
[312492562,1705927892992,-500.0,0.00055068,120]
[312492563,1705927893002,-2210.96,0.00055068,120]
[312492564,1705927893012,-500.0,0.00055068,120]
[312492565,1705927893023,-1824.98,0.00055068,120]
[312492566,1705927893034,-500.0,0.00055068,120]
[312492567,1705927893044,-500.0,0.00055068,120]
[312492568,1705927893054,-1386.6,0.00055068,120]
[312492569,1705927893064,-500.0,0.00055068,120]
[312492570,1705927893084,-500.0,0.00055068,120]
[312492571,1705927893098,-2047.64,0.00055068,120]
[312492572,1705927893112,-572.8,0.00055068,120]
[312492573,1705927893122,-500.0,0.00055068,120]
[312492574,1705927893132,-500.0,0.00055068,120]
[312492575,1705927893143,-500.0,0.00055068,120]
[312492576,1705927893154,-500.0,0.00055068,120]
[312492577,1705927893164,-500.0,0.00055068,120]
[312492578,1705927893175,-500.0,0.00055068,120]
[312492579,1705927893185,-1911.91,0.00055068,120]
[312492580,1705927893196,-636.13,0.00055068,120]
[312492581,1705927893207,-5116.41,0.00055068,120]
[312492582,1705927893218,-851.66,0.00055068,120]
[312492583,1705927893229,-500.0,0.00055068,120]
[312492584,1705927893239,-2068.23,0.00055068,120]
[312492585,1705927893249,-1177.28,0.00055068,120]
[312492586,1705927893260,-1141.08,0.00055068,120]
[312492587,1705927893270,-500.0,0.00055068,120]
[312492588,1705927893281,-500.0,0.00055068,120]
[312492589,1705927893292,-500.0,0.00055068,120]
[312492590,1705927893303,-628.87,0.00055068,120]
[312492591,1705927893314,-2720.73,0.00055068,120]
[312492592,1705927893324,-1622.4,0.00055068,120]
[312492593,1705927893334,-531.38698646,0.00055068,120]
[312492594,1705927893344,-500.0,0.00055068,120]
[312492595,1705927893355,-500.0,0.00055068,120]
[312492596,1705927893368,-500.0,0.00055068,120]
[312492597,1705927893379,-997.7,0.00055068,120]
[312492598,1705927893389,-1892.88,0.00055068,120]
[312492599,1705927893400,-500.0,0.00055068,120]
[312492600,1705927893410,-1328.96,0.00055068,120]
[312492601,1705927893420,-500.0,0.00055068,120]
[312492602,1705927893430,-620.07,0.00055068,120]
[312492603,1705927893441,-710.75,0.00055068,120]
[312492604,1705927893456,-500.0,0.00055068,120]
[312492605,1705927893466,-500.0,0.00055068,120]
[312492606,1705927893476,-606.70409862,0.00055068,120]
[312492607,1705927893487,-1869.54,0.00055068,120]
[312492608,1705927893497,-1800.47,0.00055068,120]
[312492609,1705927893508,-500.0,0.00055068,120]
[312492610,1705927893519,-1079.37,0.00055068,120]
[312492611,1705927893529,-1565.28,0.00055068,120]
[312492612,1705927893539,-500.0,0.00055068,120]
[312492613,1705927893550,-500.0,0.00055068,120]
[312492614,1705927893560,-465.08859895,0.00055068,120]
[312492615,1705927893579,-34.91140105,0.00055068,120]
[312492616,1705927893589,-500.0,0.00055068,30]
[312492617,1705927893600,-85.98106405,0.00055068,120]
[312492618,1705927893613,-414.01893595,0.00055068,120]
[312492619,1705927893624,-56.6024438,0.00055068,120]
[312492620,1705927901546,41431.89829903,0.00023,2]
[312492621,1705927909342,-1000.0,0.00023,2]
[312492622,1705927909372,-1000.0,0.00023,2]
[312492623,1705927909501,-1000.0,0.00023,2]
[312492624,1705927909560,-1000.0,0.00023,2]
[312492625,1705927909637,-1000.0,0.00023,2]
[312492626,1705927909771,-1000.0,0.00023,2]
[312492627,1705927910001,-1000.0,0.00023,2]
[312492628,1705927910055,-1000.0,0.00023,2]
[312492629,1705927910401,-1000.0,0.00023,2]
[312492630,1705927910840,-1000.0,0.00023,2]
[312492631,1705927910897,-1000.0,0.00023,2]
[312492632,1705927919426,-150.0,0.00023,2]
[312492633,1705927919819,-150.0,0.00023,2]
[312492634,1705927920164,-150.0,0.00023,2]
[312492635,1705927920523,-150.0,0.00023,2]
[312492636,1705927921264,-150.0,0.00023,2]
[312492637,1705927921359,-150.0,0.00023,2]
[312492638,1705927921658,-150.0,0.00023,2]
[312492639,1705927922035,-150.0,0.00023,2]
[312492640,1705927922444,-150.0,0.00023,2]
[312492641,1705927922885,-150.0,0.00023,2]
[312492642,1705927923270,-150.0,0.00023,2]
[312492643,1705927923660,-150.0,0.00023,2]
[312492644,1705927924024,-150.0,0.00023,2]
[312492645,1705927924416,-150.0,0.00023,2]
[312492646,1705927924833,-150.0,0.00023,2]
[312492647,1705927925207,-150.0,0.00023,2]
[312492648,1705927925579,-150.0,0.00023,2]
[312492649,1705927925957,-150.0,0.00023,2]
[312492650,1705927926323,-150.0,0.00023,2]
[312492651,1705927926673,-150.0,0.00023,2]
[312492652,1705927927021,-150.0,0.00023,2]
[312492653,1705927927374,-150.0,0.00023,2]
[312492654,1705927927713,-150.0,0.00023,2]
[312492655,1705927928086,-150.0,0.00023,2]
[312492656,1705927928432,-150.0,0.00023,2]
[312492657,1705927928840,-150.0,0.00023,2]
[312492658,1705927929238,-150.0,0.00023,2]
[312492659,1705927929622,-150.0,0.00023,2]
[312492660,1705927930056,-150.0,0.00023,2]
[312492661,1705927930450,-150.0,0.00023,2]
[312492662,1705927930791,-150.0,0.00023,2]
[312492663,1705927931184,-150.0,0.00023,2]
[312492664,1705927931618,-150.0,0.00023,2]
[312492665,1705927931936,-150.0,0.00023,2]
[312492666,1705927932450,-150.0,0.00023,2]
[312492667,1705927932721,-150.0,0.00023,2]
[312492668,1705927933095,-150.0,0.00023,2]
[312492669,1705927933504,-150.0,0.00023,2]
[312492670,1705927933883,-150.0,0.00023,2]
[312492671,1705927934290,-150.0,0.00023,2]
[312492672,1705927935046,-150.0,0.00023,2]
[312492673,1705927935145,-150.0,0.00023,2]
[312492674,1705927935512,-150.0,0.00023,2]
[312492675,1705927935882,-150.0,0.00023,2]
[312492676,1705927936283,-150.0,0.00023,2]
[312492677,1705927936755,-150.0,0.00023,2]
[312492678,1705927940940,-500.0,0.00023,2]
[312492679,1705927941286,-500.0,0.00023,2]
[312492680,1705927942203,-500.0,0.00023,2]
[312492681,1705927942469,-500.0,0.00023,2]
[312492682,1705927942657,-500.0,0.00023,2]
[312492683,1705927943080,-500.0,0.00023,2]
[312492684,1705927943519,-500.0,0.00023,2]
[312492685,1705927943925,-500.0,0.00023,2]
[312492686,1705927944356,-500.0,0.00023,2]
[312492687,1705927944787,-500.0,0.00023,2]
[312492688,1705927945217,-500.0,0.00023,2]
[312492689,1705927945648,-500.0,0.00023,2]
[312492690,1705927946116,-500.0,0.00023,2]
[312492691,1705927946566,-500.0,0.00023,2]
[312492692,1705928103516,3191.74123019,0.00022078,2]
[312492696,1705928254283,-330.67528613,0.000229,2]
[312492697,1705928254308,-158.70814561,0.000229,2]
[312492698,1705928254333,-896.57742518,0.00022989,2]
[312492699,1705928254358,-6869.39424855,0.00022997,2]
[312492700,1705928254382,-150.0,0.00022997,2]
[312492701,1705928254405,-2447.43377176,0.00022997,2]
[312492702,1705928254428,-207.98262082,0.00022998,2]
[312492703,1705928254451,-223.28488968,0.00022998,2]
[312492704,1705928254473,-20839.54894382,0.00022998,2]
[312492705,1705928254496,-373.95224658,0.00022999,10]
[312492706,1705928254520,-35988.96954185,0.00022999,2]
[312492707,1705928254543,-51382.85414451,0.00022999,2]
[312492744,1705928746420,-200.0,0.000229,2]
[312492745,1705928747115,-3.87802627,0.000229,2]
[312492746,1705928747136,-150.77273832,0.000229,2]
[312492747,1705928747157,-45.34923541,0.0002299,2]
[312492762,1705929005914,-163.102421,0.000229,2]
[312492763,1705929005939,-150.77273825,0.000229,2]
[312492764,1705929005963,-220.45019076,0.000229,2]
[312492765,1705929005987,-113.00560568,0.0002299,2]
[312492766,1705929006010,-189.05152824,0.00022998,2]
[312492767,1705929006031,-300.0,0.00022998,2]
[312492768,1705929006055,-150.0,0.00022998,2]
[312492769,1705929006078,-150.0,0.00022998,2]
[312492770,1705929006102,-13563.61751607,0.00022999,2]
[312492774,1705929031652,-1316.20749776,0.00022078,2]
[312492775,1705929031669,-1485.78679727,0.00022078,2]
[312492776,1705929031678,-159.88850779,0.00022998,2]
[312492777,1705929031687,-941.78794294,0.00022998,2]
[312492778,1705929031696,-35274.34133459,0.00022999,2]
[312492779,1705929031720,-23883.41601253,0.00022999,2]
[312492780,1705929031731,-3236.45249168,0.00022999,2]
[312492781,1705929031742,-564.34831984,0.00022999,2]
[312492782,1705929031757,-302.6740637,0.00022999,2]
[312492783,1705929031769,-425.57576695,0.00022999,2]
[312492785,1705929031847,-13374.56325977,0.00022999,2]
[312492787,1705929031859,-732.00731533,0.00022999,2]
[312492792,1705929031889,-582.7666979,0.00022999,2]
[312492824,1705929032180,-339.2,0.00022999,2]
[312492826,1705929032208,-501.9,0.00022999,2]
[312492827,1705929032219,-3073.48574326,0.00022999,2]
[312492849,1705929037459,-2490.97927769,0.00022999,2]
[312492854,1705929037523,-54540.31247066,0.00022999,2]
[312492858,1705929037590,-592.08019123,0.00022999,2]
[312492859,1705929037602,-235838.00297333,0.00022999,2]
[312492860,1705929037611,-357366.68617125,0.00023,2]
[312492861,1705929037621,-610.1887134,0.00023,2]
[312492862,1705929037631,-337.09024238,0.0002313,2]
[312492863,1705929037641,-1778.84486559,0.00023728,2]
[312492864,1705929037651,-150.77273825,0.00023728,2]
[312492865,1705929037662,-800.0,0.000239,8]
[312492866,1705929037672,-1466.79641732,0.00024,2]
[312492867,1705929037682,-1695.08,0.00024,2]
[312492868,1705929037692,-150.77273825,0.00024556,2]
[312492869,1705929037701,-317.97,0.00024788,2]
[312492870,1705929037711,-150.99,0.00024788,2]
[312492871,1705929037720,-436.36,0.00024788,2]
[312492872,1705929037729,-350.0,0.00025,3]
[312492873,1705929037739,-200.0,0.00025,2]
[312492874,1705929037749,-259.93348509,0.00025,2]
[312492875,1705929037758,-1584.56156338,0.00025,2]
[312492876,1705929037768,-388.09,0.00025,2]
[312492877,1705929037779,-511.92280892,0.00025,2]
[312492878,1705929037788,-774.04824486,0.00025,2]
[312492879,1705929037797,-201.79352657,0.00025,2]
[312492880,1705929037806,-150.77273825,0.00025383,2]
[312492881,1705929037816,-150.77273825,0.00026211,2]
[312492882,1705929037825,-275.86,0.00026307,2]
[312492883,1705929037834,-2500.0,0.00026307,3]
[312492884,1705929037843,-406.71,0.00026316,2]
[312492885,1705929037853,-23900.0,0.00026333,2]
[312492886,1705929037863,-240.09,0.0002636,2]
[312492887,1705929037872,-220.45019075,0.000264,2]
[312492888,1705929037881,-154.19,0.00026472,2]
[312492889,1705929037890,-708.82,0.00026575,2]
[312492890,1705929037900,-154.19,0.00026598,2]
[312492892,1705929037909,-250.0,0.00026606,2]
[312492894,1705929037918,-639.7,0.00026611,2]
[312492896,1705929037928,-163.102421,0.00026649,2]
[312492898,1705929037937,-876.52,0.00026653,2]
[312492900,1705929037946,-2000.0,0.00026653,2]
[312492902,1705929037956,-250.0,0.00026682,2]
[312492904,1705929037965,-250.0,0.00026684,2]
[312492906,1705929037974,-182.92,0.00026701,2]
[312492908,1705929037984,-154.19,0.00026723,2]
[312492911,1705929037993,-154.19,0.00026849,2]
[312492913,1705929038002,-154.19,0.00026974,2]
[312492915,1705929038012,-150.77273825,0.00027039,2]
[312492917,1705929038022,-317.97,0.00027052,2]
[312492919,1705929038032,-154.19,0.00027099,2]
[312492921,1705929038042,-154.19,0.00027225,2]
[312492923,1705929038051,-154.19,0.0002735,2]
[312492925,1705929038060,-197.08406692,0.00027396,2]
[312492927,1705929038069,-162.19,0.00027397,2]
[312492929,1705929038078,-164.9,0.00027397,2]
[312492931,1705929038087,-386.48,0.000274,2]
[312492933,1705929038096,-386.48,0.000274,2]
[312492935,1705929038106,-386.48,0.000274,2]
[312492937,1705929038115,-154.19,0.00027476,2]
[312492939,1705929038123,-154.19,0.00027601,2]
[312492941,1705929038132,-876.52,0.00027639,2]
[312492942,1705929038142,-240.09,0.00027678,2]
[312492945,1705929038151,-154.19,0.00027726,2]
[312492946,1705929038160,-154.19,0.00027852,2]
[312492948,1705929038169,-150.77273825,0.00027867,2]
[312492950,1705929038179,-296.06,0.0002802,2]
[312492952,1705929038188,-162.19,0.0002802,2]
[312492955,1705929038197,-639.7,0.00028255,2]
[312492957,1705929038206,-876.52,0.00028625,2]
[312492959,1705929038215,-162.19,0.00028643,2]
[312492961,1705929038225,-150.77273825,0.00028694,2]
[312492963,1705929038235,-386.48,0.0002899,2]
[312492964,1705929038244,-240.09,0.00028996,2]
[312492967,1705929038255,-103913.56475688,0.00029,2]
[312492968,1705929038265,-17732.6532415,0.000291,2]
[312492970,1705929038274,-162.19,0.00029265,2]
[312492973,1705929038283,-317.97,0.00029316,2]
[312492974,1705929038293,-150.77273825,0.00029522,2]
[312492976,1705929038302,-876.52,0.00029611,2]
[312492978,1705929038311,-101605.0,0.0002968,2]
[312492981,1705929038321,-175.56419383,0.000298,2]
[312492983,1705929038329,-162.19,0.00029888,2]
[312492984,1705929038339,-639.7,0.00029899,2]
[312492986,1705929038348,-4562.2406817,0.000299,2]
[312492988,1705929038357,-1600.0,0.000299,10]
[312492991,1705929038367,-152.25070802,0.000299,2]
[312492993,1705929038376,-172.71378818,0.000299,2]
[312492994,1705929038385,-220.45019075,0.000299,2]
[312492996,1705929038396,-386.48,0.0002997,2]
[312492998,1705929038405,-386.48,0.0002997,2]
[312493000,1705929038414,-386.48,0.0002997,2]
[312493002,1705929038422,-486728.73280836,0.0002998,2]
[312493004,1705929038432,-582.7666979,0.0003,2]
[312493006,1705929038441,-692.06285158,0.0003,2]
[312493008,1705929038453,-155.0,0.0003,2]
[312493010,1705929038464,-154.3,0.00030137,2]
[312493012,1705929038473,-158.4,0.00030137,2]
[312493014,1705929038482,-240.09,0.00030314,2]
[312493016,1705929038491,-150.77273825,0.0003035,2]
[312493018,1705929038502,-163.102421,0.00030398,2]
[312493020,1705929038511,-162.19,0.00030511,2]
[312493022,1705929038520,-876.52,0.00030598,2]
[312493024,1705929038529,-1000.0,0.00030614,2]
[312493026,1705929038539,-2740.73,0.0003111,2]
[312493028,1705929038549,-162.19,0.00031133,2]
[312493030,1705929038559,-150.77273825,0.00031178,2]
[312493032,1705929038570,-181.74,0.00031507,2]
[312493034,1705929038580,-639.7,0.00031542,2]
[312493036,1705929038590,-317.97,0.0003158,2]
[312493038,1705929038600,-240.09,0.00031632,2]
[312493040,1705929038610,-195.00618662,0.000317,6]
[312493042,1705929038622,-243.69925556,0.000317,2]
[312493044,1705929038631,-182.92,0.00031724,2]
[312493046,1705929038642,-162.19,0.00031756,2]
[312493049,1705929038654,-386.48,0.0003179,2]
[312493050,1705929038664,-166616.831456,0.000318,2]
[312493052,1705929038673,-1569.05036741,0.000318,2]
[312493055,1705929038683,-155.0,0.00032,2]
[312493057,1705929038693,-150.77273825,0.00032006,2]
[312493059,1705929038703,-4562.24068163,0.00032254,4]
[312493061,1705929038713,-162.19,0.00032379,2]
[312493063,1705929038722,-150.77273825,0.00032833,2]
[312493065,1705929038731,-165.95,0.00032877,15]
[312493067,1705929038740,-224.46705579,0.00032899,2]
[312493069,1705929038749,-1635.1,0.00032999,2]
[312493071,1705929038758,-1635.1,0.00032999,2]
[312493073,1705929038767,-1635.1,0.00032999,2]
[312493075,1705929038776,-1635.1,0.00032999,2]
[312493077,1705929038786,-1635.1,0.00032999,2]
[312493079,1705929038795,-1635.1,0.00032999,2]
[312493081,1705929038804,-1635.1,0.00032999,2]
[312493083,1705929038813,-1635.1,0.00032999,2]
[312493085,1705929038822,-1635.1,0.00032999,2]
[312493087,1705929038831,-1635.1,0.00032999,2]
[312493089,1705929038842,-61924.66016449,0.00033,2]
[312493091,1705929038851,-155.0,0.00033,2]
[312493093,1705929038861,-162.19,0.00033001,2]
[312493095,1705929038870,-639.7,0.00033186,2]
[312493097,1705929038880,-305.35767525,0.000335,4]
[312493099,1705929038889,-162.19,0.00033624,2]
[312493101,1705929038901,-150.77273825,0.00033661,2]
[312493103,1705929038910,-317.97,0.00033844,2]
[312493105,1705929038919,-2400.0,0.000339,12]
[312493107,1705929038928,-386.48,0.0003399,2]
[312493109,1705929038937,-1000.0,0.00034,4]
[312493111,1705929038946,-500.0,0.00034,2]
[312493113,1705929038955,-58768.38823018,0.00034,2]
[312493115,1705929038965,-150.0,0.00034101,7]
[312493117,1705929038979,-150.00000001,0.00034101,7]
[312493119,1705929038989,-150.0,0.00034101,7]
[312493121,1705929038998,-150.0,0.00034101,7]
[312493123,1705929039008,-190.30330395,0.00034101,7]
[312493125,1705929039017,-150.0,0.00034101,7]
[312493127,1705929039026,-150.0,0.00034101,7]
[312493129,1705929039036,-150.0,0.00034101,7]
[312493131,1705929039045,-150.0,0.00034101,7]
[312493133,1705929039054,-150.00000001,0.00034101,7]
[312493135,1705929039063,-150.0,0.00034101,7]
[312493137,1705929039073,-150.0,0.00034101,7]
[312493139,1705929039082,-163.102421,0.00034146,2]
[312493141,1705929039092,-162.19,0.00034246,2]
[312493144,1705929039102,-155.0,0.0003437,2]
[312493146,1705929039112,-1000.0,0.00034441,2]
[312493148,1705929039121,-150.77273825,0.00034489,2]
[312493150,1705929039130,-474.758786,0.0003452,2]
[312493152,1705929039139,-4562.24068163,0.00034607,7]
[312493154,1705929039150,-12804.56,0.00034649,2]
[312493156,1705929039159,-7093.35,0.00034649,2]
[312493158,1705929039168,-712.13818,0.00034794,2]
[312493160,1705929039177,-639.7,0.0003483,2]
[312493162,1705929039187,-14814.92120467,0.000349,2]
[312493164,1705929039196,-509.45285518,0.000349,2]
[312493166,1705929039205,-537.63904529,0.000349,2]
[312493168,1705929039214,-949.517573,0.00034931,2]
[312493170,1705929039224,-1000.0,0.00034997,30]
[312493172,1705929039233,-1000.0,0.00034997,30]
[312493174,1705929039242,-1000.0,0.00034997,30]
[312493176,1705929039252,-1000.0,0.00034997,30]
[312493178,1705929039261,-1000.0,0.00034997,30]
[312493180,1705929039271,-1000.0,0.00034997,30]
[312493182,1705929039280,-1000.0,0.00034997,30]
[312493184,1705929039290,-1000.0,0.00034997,30]
[312493186,1705929039299,-1044.67956194,0.00034997,30]
[312493188,1705929039308,-1000.0,0.00034997,2]
[312493190,1705929039318,-5020.67753495,0.00035,4]
[312493192,1705929039327,-172.0,0.00035,2]
[312493194,1705929039337,-1186.896967,0.00035068,2]
[312493196,1705929039346,-150.77273825,0.00035317,2]
[312493198,1705929039356,-1661.655753,0.00035342,2]
[312493200,1705929039365,-154.3,0.00035616,2]
[312493202,1705929039375,-155.0,0.0003574,2]
[312493204,1705929039384,-1102.32059014,0.00035999,10]
[312493206,1705929039396,-5000.0,0.00036,3]
[312493208,1705929039405,-249.88307835,0.00036,2]
[312493210,1705929039415,-154.1,0.00036,7]
[312493212,1705929039425,-317.97,0.00036108,2]
[312493214,1705929039434,-150.77273825,0.00036144,2]
[312493216,1705929039443,-172.0,0.00036247,2]
[312493218,1705929039454,-1181.39402857,0.00036301,30]
[312493220,1705929039463,-1000.0,0.00036367,2]
[312493222,1705929039478,-165.06353473,0.00036578,6]
[312493224,1705929039488,-172.65502227,0.00036578,6]
[312493226,1705929039498,-3046.0,0.000366,3]
[312493228,1705929039507,-210.35018475,0.00036622,9]
[312493230,1705929039517,-158.50125027,0.0003668,30]
[312493232,1705929039527,-14528.0,0.000367,3]
[312493234,1705929039536,-150.0,0.000367,2]
[312493236,1705929039546,-406.71,0.00036842,2]
[312493238,1705929039557,-4562.24068163,0.00036961,10]
[312493240,1705929039567,-150.77273825,0.00036972,2]
[312493242,1705929039576,-386.48,0.0003699,2]
[312493244,1705929039586,-669.01240215,0.00037,7]
[312493246,1705929039595,-150383.33105144,0.00037,2]
[312493248,1705929039605,-153.16,0.00037,7]
[312493251,1705929039614,-829.01,0.00037,7]
[312493253,1705929039623,-150.0,0.00037248,2]
[312493255,1705929039633,-201.205508,0.00037362,2]
[312493257,1705929039642,-213.321367,0.00037362,2]
[312493259,1705929039653,-186.048237,0.00037362,2]
[312493261,1705929039663,-334.999999,0.00037622,120]
[312493263,1705929039672,-7206.67399848,0.00037622,30]
[312493264,1705929039682,-5330.12199109,0.00037622,30]
[312493265,1705929039691,-2918.36497069,0.00037622,60]
[312493266,1705929039700,-6672.999999,0.00037622,7]
[312493267,1705929039710,-4608.03630544,0.00037622,2]
[312493268,1705929039719,-2649.86242136,0.00037622,30]
[312493269,1705929039729,-572.51285209,0.00037622,30]
[312493270,1705929039738,-33017.10588374,0.00037622,30]
[312493352,1705929040527,-1299.57547474,0.00037622,30]
[312493356,1705929040564,-687.98644854,0.00037622,30]
[312493434,1705929041302,-561.59570697,0.00033,5]
[312493452,1705929041474,-190.99536466,0.00033,5]
[312493454,1705929041484,-3061.20410109,0.00037622,30]
[312493457,1705929041498,-1648.87135695,0.00037622,30]
[312493510,1705929041996,-1414.14450651,0.00037622,30]
[312493691,1705929043700,-664584.31620501,0.00037622,30]
[312493693,1705929043709,-2034.13518447,0.00037622,30]
[312493695,1705929043718,-30094.98216798,0.00037622,30]
[312493697,1705929043728,-155.0,0.00037701,5]
[312493699,1705929043737,-150.77273825,0.000378,2]
[312493701,1705929043746,-708.82,0.00037808,2]
[312493703,1705929043756,-150.0,0.0003789,7]
[312493705,1705929043765,-163.102421,0.00037895,2]
[312493706,1705929043775,-3200.0,0.000379,13]
[312493707,1705929043785,-299242.20762157,0.000379,2]
[312493765,1705929046182,-85218.1132091,0.000379,2]
[312493766,1705929046221,-21094.86337653,0.000379,2]
[312493767,1705929046232,-123311.90293816,0.000379,2]
[312493768,1705929046474,-1229.34949835,0.000379,2]
[312493840,1705929184871,-150.0,0.00022989,2]
[312493841,1705929184905,-3217.17702554,0.0002299,2]
[312493842,1705929184925,-150.0,0.0002299,2]
[312493843,1705929184937,-3217.17702554,0.0002299,2]
[312493844,1705929184956,-4975.91368492,0.0002299,2]
[312493845,1705929184966,-177.21873968,0.0002299,2]
[312493879,1705929945554,1011.22518572,0.00022998,5]
[312493880,1705929954150,-583.71584965,0.000249,2]
[312493881,1705929954172,-350.0,0.00025,3]
[312493882,1705929954194,-1000.0,0.00026275,2]
[312493883,1705929954215,-175.3,0.00026879,2]
[312493884,1705929954238,-400.0,0.00027,3]
[312493885,1705929954262,-355.38,0.00027397,2]
[312493886,1705929954284,-7532.08259797,0.00027397,2]
[312493887,1705929954312,-355.38,0.00027758,2]
[312493888,1705929954410,-355.38,0.00028118,2]
[312493889,1705929954433,-355.38,0.00028479,2]
[312493890,1705929954455,-355.38,0.00028839,2]
[312493891,1705929954474,-619.42,0.00028885,2]
[312493892,1705929954495,-499.99,0.00028885,2]
[312493893,1705929954514,-450.0,0.00029,3]
[312493894,1705929954536,-355.38,0.000292,2]
[312493895,1705929954559,-1000.0,0.0002956,2]
[312493896,1705929954581,-355.38,0.0002956,2]
[312493897,1705929954602,-355.38,0.00029921,2]
[312493898,1705929954622,-155.0,0.0003028,2]
[312493899,1705929954644,-355.38,0.00030281,2]
[312493900,1705929954665,-355.38,0.00030642,2]
[312493901,1705929954685,-355.38,0.00031002,2]
[312493902,1705929954706,-355.38,0.00031363,2]
[312493903,1705929954727,-241.78,0.0003168,2]
[312493904,1705929954755,-355.38,0.00031723,2]
[312493905,1705929954774,-155.43063941,0.00032,2]
[312493906,1705929954795,-150.99,0.00032,2]
[312493907,1705929954818,-355.38,0.00032084,2]
[312493908,1705929954839,-355.38,0.00032444,2]
[312493909,1705929954859,-173.77,0.00032773,2]
[312493910,1705929954879,-250.0,0.0003279,2]
[312493911,1705929954901,-355.38,0.00032805,2]
[312493912,1705929954921,-1590.73,0.00032831,3]
[312493913,1705929954943,-1000.0,0.00032844,2]
[312493914,1705929954964,-2000.0,0.0003286,2]